Cogmind - Beta 13 @@@ ROGUE MODE // 2024.04.05 @ 16:20:44 Player: Iris Result: Self-destructed Performance ------------- Evolutions (1) 500 Regions Visited (2) 400 Robots Destroyed (33) 165 Value Destroyed (803) 803 Prototype IDs (0) 0 Alien Tech Used (0) 0 Bonus (0) 0 TOTAL SCORE: 1868 Bonus ------- None Cogmind --------- Core Integrity 205/400 Matter 298/300 Energy 250/250 System Corruption 0% Temperature Cool (0) Movement Walking (120) Location -9/Materials Parts ------- > --- POWER (1) -------- Ion Engine > --- PROPULSION (2) --- Aluminum Leg Aluminum Leg > --- UTILITY (4) ------ Small Storage Unit Machine Analyzer ECM Suite Recalibrator > --- WEAPON (2) ------- Light Assault Rifle Light Assault Rifle > --- INVENTORY (8) ---- Ion Engine Light Ion Engine Recalibrator Peak State ------------ > --- POWER ------------ Ion Engine > --- PROPULSION ------- Aluminum Leg Aluminum Leg > --- UTILITY ---------- Small Storage Unit Machine Analyzer ECM Suite Recalibrator > --- WEAPON ----------- Light Assault Rifle Light Assault Rifle > --- INVENTORY -------- Ion Engine Light Ion Engine Recalibrator [Rating: 14] Favorites ----------- Power Ion Engine Engine Ion Engine Propulsion Wheel Leg Aluminum Leg Wheel Wheel Utility Small Storage Unit Device ECM Suite Storage Small Storage Unit Processor Machine Analyzer Protection Weapon Shielding Weapon Hammer Energy Gun EM Pulse Gun Ballistic Gun Autogun Launcher Grenade Launcher Impact Weapon Hammer Build | -11 -10 -9 ------- Run | Yrd Mat Mat Slots Evolved 2 | . . 2 Power . | . . . Propulsion . | . . . Utility 2 | . . 2 Weapon . | . . . Parts Attached 30 | 6 9 15 Power 5 | 1 2 2 Engine 5 | 1 2 2 Core . | . . . Reactor . | . . . Propulsion 10 | 2 3 5 Treads . | . . . Leg 6 | . 1 5 Wheel 4 | 2 2 . Hover . | . . . Flight . | . . . Utility 7 | 1 2 4 Device 4 | . . 4 Storage 1 | 1 . . Processor 1 | . 1 . Hackware . | . . . Protection 1 | . 1 . Artifact . | . . . Weapon 8 | 2 2 4 Energy Gun 1 | 1 . . Energy Cannon . | . . . Ballistic Gun 4 | 1 . 3 Ballistic Cannon . | . . . Launcher 2 | . 1 1 Special Weapon . | . . . Impact Weapon 1 | . 1 . Slashing Weapon . | . . . Piercing Weapon . | . . . Special Melee Weapon . | . . . Unidentified Prototypes . | . . . Parts Lost 17 | . 8 9 Power 4 | . 2 2 Propulsion 7 | . 4 3 Utility 2 | . 1 1 Weapon 4 | . 1 3 Highest Loss Streak 6 | . 4 6 To Critical Strikes . | . . . Average Slot Usage (%) 82 | . 78 86 Engine 10 | . 12 10 Leg 8 | . 1 13 Wheel 9 | . 21 . Device 11 | . . 20 Storage 12 | . 14 11 Processor 10 | . 9 11 Energy Gun 1 | . 2 . Ballistic Gun 6 | . . 11 Impact Weapon 9 | . 11 8 Naked Turns . | . . . Heaviest Build 18 | 13 16 18 Greatest Support 20 | 20 20 20 Greatest Overweight (x) 4 | . 2 4 Average Overweight (x) . | . . . Largest Inventory Capacity 8 | 8 8 8 Average Capacity 7 | 6 8 8 Most Carried 5 | 1 5 5 Average Carried 3 | . 4 3 Final Capacity 8 | 8 8 8 Final Carried 5 | 1 5 3 Class Distribution -------------------- 51% | Mutant 32% | Infiltrator-Mutant 15% | Scavenger-Mutant Dominant Class ---------------- Mutant | -10/Materials Infiltrator-Mutant | -9/Materials Resources | -11 -10 -9 ----------- Run | Yrd Mat Mat Matter Collected 498 | 195 155 148 Remotely . | . . . Salvage Created 1242 | . 823 419 Parts 49 | . 28 21 Haulers Intercepted 2 | . 2 . Recyclers Shooed 3 | . . 3 Parts Field Recycled . | . . . Retrieved Matter . | . . . Parts Self-Destructed . | . . . Prevented . | . . . Kills | -11 -10 -9 ------- Run | Yrd Mat Mat Combat Hostiles Destroyed 24 | . 13 11 Melee 12 | . 8 4 Guns 3 | . . 3 AOE 4 | . 1 3 Classes Destroyed 6 | . 6 . Worker 1 | . 1 . Hauler 2 | . 2 . Recycler 4 | . 3 1 Mechanic 2 | . 1 1 Swarmer 5 | . 3 2 Grunt 19 | . 10 9 Best Kill Streak 6 | . 6 5 Combat Bots Only 4 | . 4 4 Max Kills in Single Turn 2 | . 1 2 Gunslinging . | . . . Exploded 2 | . 1 2 Melee 1 | . 1 1 Uniques/NPCs Destroyed . | . . . Combat | -11 -10 -9 -------- Run | Yrd Mat Mat Hostile Shots Fired 199 | . 83 116 Missed 53 | . 22 31 Damage Taken 1662 | . 700 962 Core 409 | . 214 195 Absorbed by Shields . | . . . Redirected to Shielding 12 | . 12 . Regen/Repaired (Parts) 12 | . . 12 Core Remaining (%) 57 | 100 14 . Volleys Fired 18 | . 4 14 Largest 2 | . 2 2 Hottest 70 | . 70 40 Shots Fired 23 | . 8 15 Gun 17 | . 4 13 Cannon . | . . . Launcher 6 | . 4 2 Special . | . . . Kinetic 13 | . . 13 Thermal . | . . . Explosive 6 | . 4 2 Electromagnetic 4 | . 4 . Robot Hit Streak 13 | . 7 13 Robot Miss Streak 1 | . 1 1 Penetration Max . | . . . Secondary Targets . | . . . Shots Hit Robots 83 | . 48 35 Core Hits 22 | . 9 13 Critical Kills 2 | . 2 . Critical Parts Destroyed 13 | . 11 2 Critical Strikes 16 | . 14 2 Corrupt 1 | . 1 . Smash 15 | . 13 2 Melee Attacks 103 | . 66 37 Impact 103 | . 66 37 Slashing . | . . . Piercing . | . . . Sneak Attacks 7 | . 6 1 Combat Hostiles . | . . . Follow-up Attacks . | . . . Damage Inflicted 2567 | . 1505 1062 Guns 139 | . 39 100 Cannons . | . . . Explosions 450 | . 145 305 Melee 1960 | . 1306 654 Ramming 18 | . 15 3 Kinetic 100 | . . 100 Thermal . | . . . Explosive 450 | . 145 305 Electromagnetic 39 | . 39 . Impact 1960 | . 1306 654 Slashing . | . . . Piercing . | . . . Highest Corruption . | . . . Average Corruption . | . . . Corruption Purged . | . . . Corruption Blocked . | . . . Overload Shots . | . . . Overflow Damage 601 | . 467 134 Projectiles . | . . . Explosions 49 | . . 49 Melee 552 | . 467 85 Knockbacks 15 | . 6 9 Impact 12 | . 6 6 Kinetic . | . . . Secondary 3 | . . 3 Self-Inflicted Damage 111 | . 38 73 Shots 6 | . 4 2 Rammed 2 | . 2 . Targets Rammed 4 | . 2 2 Kicked 2 | . . 2 Crushed . | . . . Highest Temperature 66 | . 66 9 Average Temperature 27 | . 34 6 Received Heat Transfer 687 | . 291 396 Siege Activations . | . . . Robots Corrupted . | . . . Combat Hostiles . | . . . Parts Fried 12 | . 9 3 Impact Corruptions 28 | . 23 5 Robots Melted . | . . . Combat Hostiles . | . . . Parts Melted . | . . . Heat Transferred . | . . . Parts Sabotaged . | . . . Parts Stolen . | . . . Parts Stripped . | . . . Power Chain Reactions . | . . . Alert | -11 -10 -9 ------- Run | Yrd Mat Mat Peak Influence 239 | . 239 208 Initial 37 | . . 37 Average 74 | . 97 58 Maximum Alert Level 1 | . 1 1 Low Security (%) 93 | 100 86 97 Level 1 6 | . 13 2 Level 2 . | . . . Level 3 . | . . . Level 4 . | . . . Level 5 . | . . . High Security . | . . . Max Security . | . . . Squads Dispatched 6 | . 3 3 Investigation 4 | . 2 2 Extermination . | . . . Reinforcement 2 | . 1 1 Assault . | . . . Garrison . | . . . Intercept . | . . . Searches Triggered . | . . . Construction Impeded . | . . . Haulers Reinforced . | . . . Active Scanning Responses . | . . . Cargo Convoy Interrupts . | . . . Stealth | -11 -10 -9 --------- Run | Yrd Mat Mat Distress Signals 2 | . 1 1 Communications Jammed . | . . . Distress Signals . | . . . Times Spotted 41 | . 22 19 Peak Tracking Total 7 | . 4 7 Tactical Retreats 6 | . 1 5 Traps | -11 -10 -9 ------- Run | Yrd Mat Mat Traps Triggered 2 | . 2 . Indirectly . | . . . Trap Hack Attempts . | . . . Triggered . | . . . Disarmed 6 | . . 6 Reprogrammed . | . . . Reused . | . . . Traps Extracted . | . . . Installed . | . . . Triggered . | . . . Machines | -11 -10 -9 ---------- Run | Yrd Mat Mat Machines Disabled . | . . . Max in Single Turn . | . . . Machines Repaired . | . . . Machines Dismantled . | . . . Machines Sabotaged . | . . . Overloaded Fab Kills . | . . . Hacking | -11 -10 -9 --------- Run | Yrd Mat Mat Machines Accessed 6 | . 4 2 Terminals 5 | . 4 1 Fabricators . | . . . Repair Stations 1 | . . 1 Recycling Units . | . . . Scanalyzers . | . . . Garrison Access . | . . . Total Hacks 23 | . 12 11 Successful 11 | . 4 7 Failed 12 | . 8 4 Catastrophic 3 | . 2 1 Database Lockouts . | . . . Manual 14 | . 9 5 Terminals 19 | . 12 7 Fabricators . | . . . Repair Stations 4 | . . 4 Recycling Units . | . . . Scanalyzers . | . . . Garrison Access . | . . . Terminal Hacks 8 | . 4 4 Branch Access Points 1 | . 1 . Emergency Access Points 1 | . . 1 Locate Traps 1 | . . 1 Disarm Traps 1 | . . 1 Dispatch Records 1 | . 1 . Transport Status 2 | . 1 1 Zone Layout 1 | . 1 . Fabricator Hacks . | . . . Repair Station Hacks 3 | . . 3 Scan Component 2 | . . 2 Repair 1 | . . 1 Recycling Unit Hacks . | . . . Scanalyzer . | . . . Garrison Access Hacks . | . . . Unauthorized Hacks . | . . . Terminals . | . . . Fabricators . | . . . Repair Stations . | . . . Recycling Units . | . . . Scanalyzers . | . . . Garrison Access . | . . . Data Cores Recovered . | . . . Used . | . . . Hacking Detections 6 | . 4 2 Full Trace Events 4 | . 2 2 Feedback Events . | . . . Feedback Blocked . | . . . Robot Schematics Acquired . | . . . Robots Built . | . . . Authchips . | . . . Time . | . . . Total Robot Build Rating . | . . . Part Schematics Acquired . | . . . Parts Built . | . . . Authchips . | . . . Time . | . . . Total Part Build Rating . | . . . Parts Repaired 1 | . . 1 Time 26 | . . 26 Parts Recycled . | . . . Recycled Matter . | . . . Retrieved Matter . | . . . Retrieved Components . | . . . Parts Scanalyzed . | . . . Part Schematics Acquired . | . . . Parts Damaged . | . . . Bothacking | -11 -10 -9 ------------ Run | Yrd Mat Mat Used RIF Installer . | . . . Robots Hacked . | . . . Non-combat . | . . . Combat . | . . . Robot Hacks Applied . | . . . Relay Couplers Released . | . . . Fabnet Peak Effective % . | . . . Robots Rewired . | . . . Allies Hacked . | . . . Hacks Repelled . | . . . Allies | -11 -10 -9 -------- Run | Yrd Mat Mat Total Allies . | . . . Largest Group . | . . . Highest-Rated Group . | . . . Highest-Rated Ally . | . . . Total Orders . | . . . Ally Attacks . | . . . Total Damage . | . . . Kills . | . . . Allies Corrupted . | . . . Allies Melted . | . . . Intel | -11 -10 -9 ------- Run | Yrd Mat Mat Robot Analysis Total . | . . . Derelict Logs Recovered . | . . . Drone Launches . | . . . Drone Recoveries . | . . . Exploration | -11 -10 -9 ------------- Run | Yrd Mat Mat Turns Passed 1851 | 50 802 999 Spaces Moved 1171 | 51 650 470 Core 13 | 3 3 7 Treads . | . . . Legs 506 | . 43 463 Wheels 652 | 48 604 . Hover . | . . . Flight . | . . . Fastest Speed 50 | 50 80 120 Average Speed 118 | 78 86 166 Slowest Speed 250 | 80 190 250 Overloaded Moves . | . . . Propulsion Burnouts . | . . . Robots Hopped . | . . . Cave-ins Triggered . | . . . Exploration Rate (%) 32 | 3 69 26 Regions Visited 2 Branch Regions . Pre-discovered Areas . | . . . Known Exits Taken . | . . . Unknown Exits Taken 2 | 1 1 . Scrap Searched . | . . . Spaces Dug 4 | . 4 . Terrain Destroyed 33 | . 22 11 Melee 4 | . 4 . Projectile . | . . . AOE 29 | . 18 11 Terrain Rammed . | . . . Walls Destroyed . | . . . Machines Disabled . | . . . Actions | -11 -10 -9 --------- Run | Yrd Mat Mat Total 1424 | 57 765 602 Wait 91 | . 29 62 Move 1169 | 50 649 470 Hop . | . . . Pick Up 6 | 1 4 1 Fast Attach 24 | 6 7 11 Attach 6 | . 2 4 Detach 3 | . 2 1 Swap . | . . . Drop . | . . . Fire 18 | . 4 14 Melee 103 | . 66 37 Ram 2 | . 2 . Kick 2 | . . 2 Crush . | . . . Escape Stasis . | . . . Rewire . | . . . Trap . | . . . Miscellaneous . | . . . Route ------- -11/Scrapyard -10/Materials (discovered 4 exits: *Mat x3 / *Min) -9/Materials (discovered 1 exit: [*Sto]) History --------- Turn | Location | Event 2 | -11/Scrapyard | Met Revision 17 8 | -11/Scrapyard | Discovered new exit (range 16) 51 | -11/Scrapyard | Entered Materials 86 | -10/Materials | Discovered new exit (range 11) 264 | -10/Materials | Lost 4 parts (1p1n1u1w) 312 | -10/Materials | Build established: Mutant 358 | -10/Materials | Identified exit to Mines 502 | -10/Materials | Discovered new exit (range 15) 679 | -10/Materials | Discovered new exit (range 15) 692 | -10/Materials | Core integrity fell below 50% 746 | -10/Materials | Core integrity fell below 20% 853 | -10/Materials | Entered another Materials area 853 | -9/Materials | Evolved 2 slots: Utility x2 1190 | -9/Materials | Repaired ECM Suite 1345 | -9/Materials | Discovered new exit (range 8) 1567 | -9/Materials | Lost 3 parts (1p1n1w) 1649 | -9/Materials | Lost 6 parts (1p2n1u2w) 1852 | -9/Materials | Self-destructed Last Messages --------------- 01670_ U-05 Engineer builds a Wall. 01671_ Acquired Lgt. Assault Rifle. 01673_ U-05 Engineer builds a Wall. 01680_ Acquired Recalibrator. 01686_ Kicked U-05 Engineer. 01689_ Acquired 18 matter. 01708_ Acquired 10 matter. 01786_ Connecting with Repair Station... >>Scan(ECM Suite) Scanning ECM Suite... Ready to Repair: ECM Suite Rating: 1 Time: 26 01786_ ALERT: Suspicious activity at Repair Station M002. Dispatching Investigation squad. 01808_ ALERT: Hostiles spotted, dispatching reinforcements to Terminal M011. 01815_ W-16 Scout sends out distress signal. 01830_ Critical hit (Burn: +37). Map ----- +----------------------------------------------------+ | ?????????????????????????????????????????????????? | | ?????????????????????????????????????????????????? | | ?????????????????????????????????????????????????? | | ?????????????????????????????????????????????????? | | ?????????????????????????????????????????????????? | | ?????????????????????????????????????????????????? | | ?????????????????????????????????????????????????? | | ?????????????????????????????? ????????????????? | | ?????????????????????????????? ""??????????????? | | ?????????????????????????????? """ ??????????? | | ?????????????????????????????? ?????????? | | ?????????????????????????????? ??????????? | | ?????????????????????????????? *! ???????????? | | ?????????????????????????????? *!????????????? | | ?????????????????????????????# =?????????????? | | ???????????????????######### # ??????????????? | | ???????????????????########### ??????????????? | | ???????????????????## # ##??????????????? | | ???##########??????## # ##??????????????? | | ???##########??????## # ##??????????????? | | ???## ##??????## ! # ##??????????????? | | ???## ##??????## ^+ #???????????????? | | ???## ##??????## k# #???????????????? | | ???## ##??????## # #???????????????? | | ???## ] ##??????## # #???????????????? | | ?#### ########## @ # #???????????????? | | ?#####+##################/#### #???????????????? | | ### g ### #???????????????? | | ### ### ##??????????????? | | ### ##??????????????? | | ########### # ### ###############?? | | # ] #### # ### ###############?? | | ###%% # % [] ####! !# ### #### ##?? | | %%+%% / * ] #####!!!!## ### #### ##?? | | ! # #% ########### ### ####!! ##?? | | # # ##?######## ### ####! ##?? | | ### # ###??????## ### ####! """ ##?? | | ### #####+####??????## ### #### """ ##?? | | # # ##??????## ### #### """ ##?? | | # # ##??????## ### #### ##?? | | # + ##??????## ### ########+######?? | | # # ##??????## ###?? | | + # ##??????## ##??? | | # # < ##??????## ##??? | | # # ##??????#################+#######??? | | # # ##??????############ ##??? | | + + ##????????????????## """ """##??? | | ####### ##????????????????## """ R"##??? | | ####### ##????????????????## """ """##??? | | ?????###########????????????????## """ ##??? | +----------------------------------------------------+ Best States ------------- Heat Dissipation 28 Energy Generation 10 Energy Capacity 250 Matter Stores 300 Matter Capacity 300 Sight Range 16 Terrain Scan Density 10 ECM Strength 1 Weapon Shielding 33 Evasion (%) 55 Item Schematics ----------------- None Robot Schematics ------------------ None Fabricated ------------ Nothing Alien Tech Used ----------------- None Achievements -------------- None Challenges ------------ None Game ------ Seed FactoryBeamCloak Manual? 0 Play Time 00:14:13 Cumulative 8.7 hours Start 2024.04.05 @ 16:08:08 End 2024.04.05 @ 16:20:44 Sessions 1 Manual Loads 0 Difficulty Rogue Special Mode None Game No. 27 Rogue 27 Adventurer 0 Explorer 0 Win Type - Total 0 Types 0/0/0/0/0/0/0/0/0 Lore% 12 Gallery% 18 Achievement% 16 Wizard Run 0 Options --------- Layout 2 ASCII 0 Keyboard 1 Movement Arrows Keybinds 0 Fullscreen 2 Font 32/SmallcapsGlow Map View 50x44 Zoom Use 0% Tactical HUD 1 Map Filters NONE Filters NONE Steam 1 RUN: d2ecbb19-3a49-4b5c-9df1-0f15c66218c3